Cogmind - Beta 12 X1 @@@ ROGUE MODE // 2022.07.21 @ 09:54:14 Player: btmk16 Result: Destroyed by DAS Turret with DAS Cannon Performance ------------- Evolutions (1) 500 Regions Visited (4) 800 Robots Destroyed (54) 270 Value Destroyed (1268) 1268 Prototype IDs (2) 40 Alien Tech Used (0) 0 Bonus (-147) -147 TOTAL SCORE: 2731 Bonus ------- Follower Combat Kills 25 Friendly Fire -172 Cogmind --------- Core Integrity 0/400 Matter 108/300 Energy 308/310 System Corruption 3% Temperature Cool (1) Movement Treading (320) Ox2 Location -9/Exiles Parts ------- > --- POWER (1) -------- Reinforced Fission Core > --- PROPULSION (2) --- Improved Treads > --- UTILITY (4) ------ Large Storage Unit Hardened Light Armor Plating > --- WEAPON (2) ------- Heavy Assault Rifle Improved Assault Rifle > --- INVENTORY (15) --- Improved Ion Engine System Purifier Improved Assault Rifle Improved Assault Rifle Rocket Launcher Rocket Launcher Peak State ------------ > --- POWER ------------ Improved Ion Engine > --- PROPULSION ------- Improved Treads Improved Treads > --- UTILITY ---------- Large Storage Unit Hardened Light Armor Plating Hardened Light Armor Plating System Purifier > --- WEAPON ----------- Improved Assault Rifle Improved Assault Rifle > --- INVENTORY -------- Improved Treads Improved Treads Cooling System High-capacity Matter Pod Hardened Light Armor Plating Hardened Light Armor Plating Heavy Assault Rifle Improved Assault Rifle Improved Light Cannon Improved Light Cannon Rocket Launcher Rocket Launcher [Rating: 28] Favorites ----------- Power Improved Ion Engine Engine Improved Ion Engine Power Core Reinforced Fission Core Propulsion Improved Treads Treads Improved Treads Leg Aluminum Leg Wheel Wheel Utility Large Storage Unit Device Improved Heat Sink Storage Large Storage Unit Processor Machine Analyzer Protection Hardened Light Armor Plating Weapon Improved Assault Rifle Energy Gun Spread Laser Ballistic Gun Improved Assault Rifle Ballistic Cannon Improved Light Cannon Launcher Rocket Launcher Build | -11 -10 -9 -9 -9 ------- Run | Scr Mat Mat Min Exi Slots Evolved 2 | . . 2 . . Power . | . . . . . Propulsion . | . . . . . Utility 2 | . . 2 . . Weapon . | . . . . . Parts Attached 48 | . 15 14 2 17 Power 7 | . 3 2 1 1 Engine 6 | . 3 2 1 . Core 1 | . . . . 1 Reactor . | . . . . . Propulsion 9 | . 5 2 . 2 Treads 4 | . . 2 . 2 Leg . | . . . . . Wheel 5 | . 5 . . . Hover . | . . . . . Flight . | . . . . . Utility 17 | . 2 7 1 7 Device 4 | . 1 1 . 2 Storage 2 | . 1 . . 1 Processor 1 | . . 1 . . Hackware . | . . . . . Protection 10 | . . 5 1 4 Artifact . | . . . . . Weapon 15 | . 5 3 . 7 Energy Gun 2 | . 2 . . . Energy Cannon . | . . . . . Ballistic Gun 10 | . 3 3 . 4 Ballistic Cannon 2 | . . . . 2 Launcher 1 | . . . . 1 Special Weapon . | . . . . . Impact Weapon . | . . . . . Slashing Weapon . | . . . . . Piercing Weapon . | . . . . . Special Melee Weapon . | . . . . . Unidentified Prototypes 2 | . . 1 . 1 Parts Lost 21 | . 5 1 1 14 Power 3 | . 2 . 1 . Propulsion 5 | . 2 . . 3 Utility 8 | . . 1 . 7 Weapon 5 | . 1 . . 4 Highest Loss Streak 8 | . 3 1 1 8 To Critical Strikes 4 | . . . . 4 Average Slot Usage (%) 96 | . 94 99 100 90 Engine 11 | . 13 11 11 8 Treads 12 | . . 10 22 19 Wheel 10 | . 26 11 . . Device 5 | . 9 8 . 3 Storage 12 | . 14 11 11 13 Processor 6 | . . 10 11 3 Protection 12 | . . 12 22 17 Energy Gun 6 | . 23 2 . . Ballistic Gun 15 | . 4 19 22 15 Naked Turns . | . . . . . Heaviest Build 52 | 10 32 43 43 52 Greatest Support 46 | 20 26 46 46 46 Greatest Overweight (x) 2 | . 2 1 . 2 Average Overweight (x) . | . . . . . Largest Inventory Capacity 15 | . 15 15 15 15 Average Capacity 14 | . 14 15 15 15 Most Carried 15 | . 15 15 15 15 Average Carried 13 | . 13 14 14 10 Final Capacity 15 | 8 15 15 15 15 Final Carried 15 | 6 15 14 15 6 Class Distribution -------------------- 94% | Mutant 5% | Scavenger-Mutant Dominant Class ---------------- Mutant | -10/Materials Mutant | -9/Materials Mutant | -9/Mines Mutant | -9/Exiles Resources | -11 -10 -9 -9 -9 ----------- Run | Scr Mat Mat Min Exi Matter Collected 1516 | 173 282 687 160 214 Remotely . | . . . . . Salvage Created 1757 | . 462 952 302 41 Parts 103 | . 27 55 21 . Haulers Intercepted 5 | . 2 3 . . Recyclers Shooed 2 | . . . 2 . Parts Field Recycled . | . . . . . Retrieved Matter . | . . . . . Parts Self-Destructed . | . . . . . Prevented . | . . . . . Kills | -11 -10 -9 -9 -9 ------- Run | Scr Mat Mat Min Exi Combat Hostiles Destroyed 42 | . 13 19 4 6 Guns 39 | . 13 19 4 3 AOE 3 | . . . . 3 Classes Destroyed 12 | . 5 4 2 1 Worker 5 | . 1 3 1 . Builder 1 | . . . 1 . Tunneler 2 | . . . 2 . Hauler 5 | . 2 3 . . Mechanic 1 | . 1 . . . Operator 1 | . . 1 . . Watcher 1 | . . 1 . . Swarmer 6 | . 3 3 . . Grunt 24 | . 10 12 2 . Brawler 2 | . . 1 1 . Sentry 5 | . . 3 2 . Assembled 5 | . . . . 5 Best Kill Streak 6 | . 6 6 2 4 Combat Bots Only 5 | . 5 4 2 4 Max Kills in Single Turn 3 | . 2 2 1 3 Gunslinging 1 | . . 1 . . Exploded 3 | . . . . 3 Melee . | . . . . . Uniques/NPCs Destroyed 2 | . . . . 2 EX-BIN (-9/Exiles) 8R-AWN (-9/Exiles) Combat | -11 -10 -9 -9 -9 -------- Run | Scr Mat Mat Min Exi Damage Taken 3227 | . 595 584 322 1726 Core 573 | . 152 83 42 296 Absorbed by Shields . | . . . . . Core Remaining (%) 69 | 100 39 . . . Volleys Fired 188 | . 38 60 23 67 Largest 2 | . 2 2 2 2 Hottest 130 | . 130 88 46 78 Shots Fired 371 | . 75 119 47 130 Gun 290 | . 75 119 47 49 Cannon 80 | . . . . 80 Launcher 1 | . . . . 1 Special . | . . . . . Kinetic 302 | . 14 112 47 129 Thermal 68 | . 61 7 . . Explosive 1 | . . . . 1 Electromagnetic . | . . . . . Robot Hit Streak 17 | . 14 17 11 17 Robot Miss Streak 8 | . 8 4 2 4 Penetration Max . | . . . . . Secondary Targets 6 | . 3 3 . . Max Gunslinging Chain 1 | . 1 1 . . Shots Hit Robots 281 | . 67 93 33 88 Core Hits 138 | . 63 44 10 21 Critical Kills . | . . . . . Critical Parts Destroyed 1 | . . 1 . . Critical Strikes 2 | . . 1 . 1 Destroy 1 | . . 1 . . Blast 1 | . . . . 1 Melee Attacks . | . . . . . Impact . | . . . . . Slashing . | . . . . . Piercing . | . . . . . Sneak Attacks . | . . . . . Combat Hostiles . | . . . . . Follow-up Attacks . | . . . . . Damage Inflicted 4637 | . 814 1421 533 1869 Guns 3205 | . 814 1420 525 446 Cannons 1180 | . . . . 1180 Explosions 243 | . . . . 243 Melee . | . . . . . Ramming 9 | . . 1 8 . Kinetic 3597 | . 107 1339 525 1626 Thermal 788 | . 707 81 . . Explosive 243 | . . . . 243 Electromagnetic . | . . . . . Impact . | . . . . . Slashing . | . . . . . Piercing . | . . . . . Highest Corruption 3 | . . 2 2 3 Average Corruption 2 | . . 2 2 2 Corruption Purged . | . . . . . Corruption Blocked . | . . . . . Effects 22 | . . 4 10 8 Message Errors 6 | . . 1 2 3 Matter Fused 4 | . . 1 2 1 Heat Flow Errors 2 | . . . . 2 Energy Discharges 2 | . . . 2 . Data Loss (minor) 2 | . . 1 1 . Data Loss (major) 2 | . . . 2 . Misfires 2 | . . . 1 1 Weapon Failures 2 | . . 1 . 1 Overload Shots . | . . . . . Overflow Damage 11 | . . . . 11 Projectiles . | . . . . . Explosions 11 | . . . . 11 Melee . | . . . . . Knockbacks 22 | . . . . 22 Impact . | . . . . . Kinetic 22 | . . . . 22 Secondary . | . . . . . Self-Inflicted Damage 46 | . . . . 46 Shots 1 | . . . . 1 Rammed . | . . . . . Targets Rammed 2 | . . 1 1 . Kicked . | . . . . . Crushed 2 | . . 1 1 . Highest Temperature 456 | . 234 66 126 456 Average Temperature 119 | . 70 25 31 234 Received Heat Transfer 757 | . 315 252 132 58 Effects 9 | . . . . 9 Shutdowns 2 | . . . . 2 Energy Bleed 2 | . . . . 2 Interference 1 | . . . . 1 Matter Decay 2 | . . . . 2 Short Circuit 1 | . . . . 1 Damage (minor) 1 | . . . . 1 Siege Activations . | . . . . . Robots Corrupted . | . . . . . Combat Hostiles . | . . . . . Parts Fried . | . . . . . Impact Corruptions . | . . . . . Robots Melted . | . . . . . Combat Hostiles . | . . . . . Parts Melted 3 | . 3 . . . Heat Transferred 1110 | . 1010 100 . . Parts Sabotaged . | . . . . . Parts Stolen . | . . . . . Parts Stripped . | . . . . . Power Chain Reactions . | . . . . . Missiles Intercepted . | . . . . . Alert | -11 -10 -9 -9 -9 ------- Run | Scr Mat Mat Min Exi Peak Influence 315 | . 269 315 168 . Initial 105 | . . 24 105 . Average 117 | . 130 168 53 . Maximum Alert Level 1 | . 1 1 . . Low Security (%) 86 | . 78 79 100 . Level 1 13 | . 21 20 . . Level 2 . | . . . . . Level 3 . | . . . . . Level 4 . | . . . . . Level 5 . | . . . . . High Security . | . . . . . Max Security . | . . . . . Squads Dispatched 9 | . 3 6 . . Investigation 5 | . 2 3 . . Extermination . | . . . . . Reinforcement 4 | . 1 3 . . Assault . | . . . . . Garrison . | . . . . . Intercept . | . . . . . Searches Triggered . | . . . . . Construction Impeded . | . . . . . Haulers Reinforced . | . . . . . Active Scanning Responses . | . . . . . Cargo Convoy Interrupts . | . . . . . Stealth | -11 -10 -9 -9 -9 --------- Run | Scr Mat Mat Min Exi Distress Signals 3 | . . 3 . . Communications Jammed . | . . . . . Distress Signals . | . . . . . Times Spotted 68 | . 31 24 5 8 Peak Tracking Total 9 | . 5 4 3 9 Tactical Retreats . | . . . . . Traps | -11 -10 -9 -9 -9 ------- Run | Scr Mat Mat Min Exi Traps Triggered 8 | . 5 3 . . Indirectly . | . . . . . Trap Hack Attempts . | . . . . . Triggered . | . . . . . Disarmed . | . . . . . Reprogrammed . | . . . . . Reused . | . . . . . Traps Extracted . | . . . . . Installed . | . . . . . Triggered . | . . . . . Machines | -11 -10 -9 -9 -9 ---------- Run | Scr Mat Mat Min Exi Machines Disabled 6 | . . . 1 5 Max in Single Turn 1 | . . . 1 1 Machines Sabotaged . | . . . . . Garrisons Compromised . | . . . . . Overloaded Fab Kills . | . . . . . Hacking | -11 -10 -9 -9 -9 --------- Run | Scr Mat Mat Min Exi Machines Accessed 9 | . 4 4 1 . Terminals 9 | . 4 4 1 . Fabricators . | . . . . . Repair Stations . | . . . . . Recycling Units . | . . . . . Scanalyzers . | . . . . . Garrison Access . | . . . . . Total Hacks 22 | . 12 8 2 . Successful 12 | . 5 6 1 . Failed 10 | . 7 2 1 . Catastrophic 3 | . 3 . . . Database Lockouts . | . . . . . Manual 10 | . 9 1 . . Terminals 22 | . 12 8 2 . Fabricators . | . . . . . Repair Stations . | . . . . . Recycling Units . | . . . . . Scanalyzers . | . . . . . Garrison Access . | . . . . . Terminal Hacks 11 | . 4 6 1 . Robot Analysis 4 | . 4 . . . Branch Access Points 1 | . . 1 . . Alert Level 2 | . . 2 . . Transport Status 1 | . . 1 . . Hauler Manifests 1 | . . 1 . . Zone Layout 2 | . . 1 1 . Fabricator Hacks . | . . . . . Repair Station Hacks . | . . . . . Recycling Unit Hacks . | . . . . . Scanalyzer . | . . . . . Garrison Access Hacks . | . . . . . Unauthorized Hacks 1 | . 1 . . . Terminals 1 | . 1 . . . Botnet 1 | . 1 . . . Fabricators . | . . . . . Repair Stations . | . . . . . Recycling Units . | . . . . . Scanalyzers . | . . . . . Garrison Access . | . . . . . Data Cores Recovered . | . . . . . Used . | . . . . . Hacking Detections 8 | . 4 3 1 . Full Trace Events . | . . . . . Feedback Events . | . . . . . Feedback Blocked . | . . . . . Robot Schematics Acquired . | . . . . . Robots Built . | . . . . . Authchips . | . . . . . Time . | . . . . . Total Robot Build Rating . | . . . . . Part Schematics Acquired . | . . . . . Parts Built . | . . . . . Authchips . | . . . . . Time . | . . . . . Total Part Build Rating . | . . . . . Parts Repaired . | . . . . . Time . | . . . . . Parts Recycled . | . . . . . Recycled Matter . | . . . . . Retrieved Matter . | . . . . . Retrieved Components . | . . . . . Parts Scanalyzed . | . . . . . Part Schematics Acquired . | . . . . . Parts Damaged . | . . . . . Bothacking | -11 -10 -9 -9 -9 ------------ Run | Scr Mat Mat Min Exi Used RIF Installer . | . . . . . Robots Hacked . | . . . . . Non-combat . | . . . . . Combat . | . . . . . Robot Hacks Applied . | . . . . . Relay Couplers Released . | . . . . . Fabnet Peak Effective % . | . . . . . Robots Rewired . | . . . . . Allies Hacked . | . . . . . Hacks Repelled . | . . . . . Allies | -11 -10 -9 -9 -9 -------- Run | Scr Mat Mat Min Exi Total Allies 3 | . . . 3 . Largest Group 3 | . . . 3 2 Highest-Rated Group 40 | . . . 40 32 Highest-Rated Ally 16 | . . . 16 16 Total Orders . | . . . . . Ally Attacks 32 | . . . 8 24 Total Damage 237 | . . . 52 185 Kills 4 | . . . 1 3 Allies Corrupted . | . . . . . Allies Melted . | . . . . . Intel | -11 -10 -9 -9 -9 ------- Run | Scr Mat Mat Min Exi Robot Analysis Total 4 | . 4 . . . Derelict Logs Recovered 1 | . . . 1 . Drone Launches . | . . . . . Drone Recoveries . | . . . . . Exploration | -11 -10 -9 -9 -9 ------------- Run | Scr Mat Mat Min Exi Turns Passed 3409 | . 895 1034 1020 460 Spaces Moved 2049 | 1 737 603 588 120 Core . | . . . . . Treads 976 | . . 268 588 120 Legs 34 | 1 33 . . . Wheels 1039 | . 704 335 . . Hover . | . . . . . Flight . | . . . . . Fastest Speed 95 | 120 95 105 160 160 Average Speed 131 | 120 98 129 160 204 Slowest Speed 320 | 120 120 160 160 320 Overloaded Moves . | . . . . . Propulsion Burnouts . | . . . . . Robots Hopped . | . . . . . Cave-ins Triggered . | . . . . . Exploration Rate (%) 59 | 2 99 57 99 41 Regions Visited 4 Branch Regions 2 Pre-discovered Areas . | . . . . . Known Exits Taken 1 | . . 1 . . Unknown Exits Taken 3 | 1 1 . 1 . Scrap Searched 3 | . . . 3 . Spaces Dug . | . . . . . Terrain Destroyed 7 | . . . . 7 Melee . | . . . . . Projectile 2 | . . . . 2 AOE 5 | . . . . 5 Terrain Rammed . | . . . . . Walls Destroyed . | . . . . . Machines Disabled . | . . . . . Actions | -11 -10 -9 -9 -9 --------- Run | Scr Mat Mat Min Exi Total 2411 | . 839 745 622 205 Wait 68 | . 24 38 6 . Move 2045 | . 736 602 587 120 Hop . | . . . . . Pick Up 27 | . 15 10 2 . Fast Attach 12 | . 5 5 . 2 Attach 18 | . 3 4 1 10 Detach 4 | . 1 2 . 1 Swap 18 | . 7 5 1 5 Drop 29 | . 10 18 1 . Fire 188 | . 38 60 23 67 Melee . | . . . . . Ram . | . . . . . Kick . | . . . . . Crush 2 | . . 1 1 . Escape Stasis . | . . . . . Rewire . | . . . . . Trap . | . . . . . Miscellaneous . | . . . . . Route ------- -11/Scrapyard -10/Materials (discovered 4 exits: *Mat x3 / [*Min]) -9/Materials (discovered 2 exits: *Min x2) -9/Mines (discovered 3 exits: [*Mat x2] / [*Exi]) -9/Exiles History --------- Turn | Location | Event 1 | -11/Scrapyard | Discovered new exit (range 0) 1 | -11/Scrapyard | Entered Materials 242 | -10/Materials | Discovered new exit (range 10) 330 | -10/Materials | Lost 3 parts (2p1n) 338 | -10/Materials | Build established: Mutant 429 | -10/Materials | Discovered new exit (range 15) 429 | -10/Materials | Discovered new exit (range 14) 565 | -10/Materials | Discovered new exit (range 6) 704 | -10/Materials | Core integrity fell below 50% 896 | -10/Materials | Entered another Materials area 896 | -9/Materials | Evolved 2 slots: Utility x2 990 | -9/Materials | Identified exit to Mines 1930 | -9/Materials | Entered Mines 1983 | -9/Mines | Discovered new exit (range 3) 2006 | -9/Mines | Learned 4 Materials zone layouts 2034 | -9/Mines | Discovered new exit (range 8) 2520 | -9/Mines | Assisted by bots powering up and referring to "LRC-V3" 2555 | -9/Mines | Received a Rocket Launcher from a helpful Derelict 2944 | -9/Mines | Deemed a non-threat by the Exiles lab entrance 2944 | -9/Mines | Discovered new exit (range 5) 2950 | -9/Mines | Entered Exiles 2950 | -9/Exiles | Accompanied by 2 allies 2994 | -9/Exiles | Met 8R-AWN 3018 | -9/Exiles | Met EX-HEX 3061 | -9/Exiles | Met EX-BIN 3070 | -9/Exiles | Attacked by the Exiles 3074 | -9/Exiles | Allies destroyed EX-BIN 3093 | -9/Exiles | Core integrity fell below 50% 3096 | -9/Exiles | Found Prototype Device 3096 | -9/Exiles | Identified System Purifier 3124 | -9/Exiles | Lost 4 parts (2u2w) 3257 | -9/Exiles | Core integrity fell below 20% 3305 | -9/Exiles | Destroyed 8R-AWN 3335 | -9/Exiles | Lost 8 parts (2n4u2w) 3410 | -9/Exiles | Destroyed by DAS Turret with DAS Cannon Last Messages --------------- 03304_ Penetrated by HV Slug. 03304_ Hcp. Matter Pod destroyed. 03304_ Penetrated by HV Slug. 03304_ Critical hit (Destroy). 03304_ Broken Imp. Treads destroyed. 03305_ 8R-AWN destroyed. 03308_ Overheating: System interference. 03308_ Hvy. Assault Rifle temporarily disabled. 03313_ Acquired Rnf. Fission Core. 03314_ Acquired 17 matter. 03318_ Acquired 11 matter. 03321_ Acquired 7 matter. 03322_ Overheating: Energy bleed (-29). 03324_ Acquired 38 matter. 03327_ Machine disabled. 03331_ as-84921 destroyed. 03333_ Acquired 17 matter. 03340_ Acquired 7 matter. 03343_ Acquired 5 matter. 03356_ Acquired 10 matter. Map ----- +----------------------------------------------------+ | ???????????????????? #? # X" """"???????? | | ????????????????????# # """ #???????? | | ???????????????"##??# # % """""""""#???????? | | ??????????????? " # "" ########?????????? | | ????????????????? "" ##????????????????? | | ??????????????????"#"""" % #????????????????? | | ??????????????????# ##???????????????? | | ???????????????"" *"###?##########??? | | ??????????????????""" #"###"""""""""##? | | ??????????????? " """ """"## | | ?????????????? % "" " # | | ?????????????? % " """# | | ??????????????? " "# | | ??????????????? % " "# | | ??????????????? "" | | ???????????????? """""" % | | ???????????????? ######" " | | ????????????????? ""#?????#####" | | ?????????????????"?"#??????????##""" | | ???????????? ??????????????????#"""" | | ???????????? ???????????????##"" | | ??????????? ???####???####"""" | | ??????????? ##aaa####""" | | ?????????? %"""" | | ?????????? % | | ?????????? @ | | ?????????? % " | | ?????????? " "" """ | | ??????????? ""## ##""" " " ""#" | | ??????????? ""##?# ######""" """##"""""" | | ???????????? """"#???# #????###""""######### | | ???????????? ""?????# #??????######???????? | | ???????????? ????????! ???????????????????? | | ????????????? ? ????????#" ??????????????????? | | ?????????????????????????#" ??????????????????? | | ??????????????????????????!!""!"?????????????????? | | ??????????????????????????######?????????????????? | | ?????????????????????????????????????????????????? | | ?????????????????????????????????????????????????? | | ?????????????????????????????????????????????????? | | ?????????????????????????????????????????????????? | | ?????????????????????????????????????????????????? | | ?????????????????????????????????????????????????? | | ?????????????????????????????????????????????????? | | ?????????????????????????????????????????????????? | | ?????????????????????????????????????????????????? | | ?????????????????????????????????????????????????? | | ?????????????????????????????????????????????????? | | ?????????????????????????????????????????????????? | | ?????????????????????????????????????????????????? | +----------------------------------------------------+ Best States ------------- Heat Dissipation 64 Energy Generation 19 Energy Capacity 310 Matter Stores 300 Matter Capacity 500 Sight Range 16 Terrain Scan Density 10 Armor Coverage 300 Evasion (%) 55 Recoil Reduction 2 Item Schematics ----------------- None Robot Schematics ------------------ None Fabricated ------------ Nothing Alien Tech Used ----------------- None Achievements -------------- None Challenges ------------ None Game ------ Seed CoolantLaserTendrils Manual? 0 Play Time 00:27:31 Cumulative 418.8 hours Start 2022.07.20 @ 18:12:06 End 2022.07.21 @ 09:54:14 Sessions 1 Manual Loads 0 Difficulty Rogue Special Mode None Game No. 477 Rogue 476 Adventurer 0 Explorer 1 Win Type - Total 10 Types 6/0/2/2/0/0/0/0/0 Lore% 77 Gallery% 87 Achievement% 66 Wizard Run 0 Options --------- ASCII 0 Keyboard 1 Movement Vi Keybinds 0 Fullscreen 1 Font 18/SmallcapsGlow Map View 76x50 Tactical HUD 1 Map Filters NONE Filters NONE Steam 1 RUN: f58e32bb-28fd-40b5-94d4-8c13e3ac00e6